Cogmind - Beta 17 @@@ ROGUE MODE // 2026.06.22 @ 19:13:40 Player: Waste Result: Destroyed by T1-OQU(R) with Subdweller Laser Performance ------------- Evolutions (0) 0 Regions Visited (3) 600 Robots Destroyed (32) 160 Value Destroyed (834) 834 Prototype IDs (14) 280 Alien Tech Used (0) 0 Bonus (158) 158 TOTAL SCORE: 2032 Bonus ------- Follower Combat Kills 158 Cogmind --------- Core Integrity 0/250 Matter 268/300 Energy 124/250 System Corruption 2% Temperature Cool (6) Movement Treading (160) Location -10/Subcaves Parts ------- > --- POWER (1) -------- Ion Engine > --- PROPULSION (2) --- Light Treads Spiked Treads > --- UTILITY (2) ------ Improved Heat Sink Large Storage Unit > --- WEAPON (2) ------- Subdweller Laser Subdweller Machine Gun > --- INVENTORY (15) --- Ion Engine Aluminum Leg Aluminum Leg Compact Wheel Compact Wheel Improved Heat Sink Experimental Sensor Array Self-contained Transmogrifier Rainbow Chip Light Assault Rifle Light Assault Rifle Subdweller Machine Gun Grenade Launcher Rocket Launcher Peak State ------------ > --- POWER ------------ Ion Engine > --- PROPULSION ------- Light Treads Spiked Treads > --- UTILITY ---------- Improved Heat Sink Large Storage Unit > --- WEAPON ----------- Subdweller Laser Subdweller Machine Gun > --- INVENTORY -------- Ion Engine Ion Engine Aluminum Leg Aluminum Leg Compact Wheel Compact Wheel Improved Heat Sink Experimental Sensor Array Self-contained Transmogrifier Rainbow Chip Light Assault Rifle Light Assault Rifle Subdweller Machine Gun Grenade Launcher Rocket Launcher [Rating: 16] Favorites ----------- Power Ion Engine Engine Ion Engine Propulsion Light Treads Treads Light Treads Leg Aluminum Leg Utility Large Storage Unit Device Improved Heat Sink Storage Large Storage Unit Weapon Light Assault Rifle Energy Gun Small Laser Ballistic Gun Light Assault Rifle Build | -11 -10 -10 -10 ------- Run | Yrd Mat Min Sub Slots Evolved . | . . . . Power . | . . . . Propulsion . | . . . . Utility . | . . . . Weapon . | . . . . Parts Attached 20 | . 16 1 3 Power 4 | . 4 . . Engine 4 | . 4 . . Core . | . . . . Reactor . | . . . . Propulsion 6 | . 5 . 1 Treads 3 | . 2 . 1 Leg 3 | . 3 . . Wheel . | . . . . Hover . | . . . . Flight . | . . . . Utility 5 | . 5 . . Device 4 | . 4 . . Storage 1 | . 1 . . Processor . | . . . . Hackware . | . . . . Protection . | . . . . Artifact . | . . . . Weapon 5 | . 2 1 2 Energy Gun 2 | . 1 . 1 Energy Cannon . | . . . . Ballistic Gun 3 | . 1 1 1 Ballistic Cannon . | . . . . Launcher . | . . . . Special Weapon . | . . . . Impact Weapon . | . . . . Slashing Weapon . | . . . . Piercing Weapon . | . . . . Special Melee Weapon . | . . . . Unidentified Prototypes . | . . . . Parts Lost 8 | . 5 1 2 Power 3 | . 2 . 1 Propulsion 3 | . 2 . 1 Utility . | . . . . Weapon 2 | . 1 1 . Highest Loss Streak 3 | . 3 1 1 To Critical Strikes . | . . . . Average Backups 14 | . 12 14 14 Power 2 | . 2 3 2 Propulsion 5 | . 5 5 4 Utility 2 | . 2 3 2 Weapon 3 | . 1 3 4 Tool/Special . | . . . . Unused Backups 13 | . . 2 11 Power 2 | . . . 2 Propulsion 1 | . . . 1 Utility 3 | . . 1 2 Weapon 6 | . . 1 5 Tool/Special 1 | . . . 1 Average Slot Usage (%) 99 | . 97 99 99 Engine 13 | . 13 14 13 Treads 21 | . 6 28 27 Leg 6 | . 21 . . Device 13 | . 12 14 14 Storage 14 | . 14 14 14 Energy Gun 12 | . 9 14 14 Ballistic Gun 15 | . 18 13 14 Peak Build Rating 16 | . 10 11 16 Average Rating 10 | . 8 10 12 On Entrance 8 | 6 6 10 11 Avg Prop Armor Cover (%) . | . . . . Naked Turns . | . . . . Heaviest Build 34 | 13 29 28 34 Greatest Support 40 | 20 40 40 40 Greatest Overweight (x) 2 | . 2 . 1 Average Overweight (x) . | . . . . Largest Inventory Capacity 15 | . 15 15 15 Average Capacity 14 | . 14 15 15 Most Carried 15 | . 15 15 15 Average Carried 14 | . 12 14 14 Final Capacity 15 | 8 15 15 15 Final Carried 15 | 6 15 15 14 Class Distribution -------------------- 69% | Mutant 30% | Scavenger-Mutant Dominant Class ---------------- Scavenger-Mutant | -10/Materials Mutant | -10/Mines Mutant | -10/Subcaves Resources | -11 -10 -10 -10 ----------- Run | Yrd Mat Min Sub Matter Collected 724 | 200 393 55 76 Remotely . | . . . . Salvage Created 984 | . 521 182 281 Parts 78 | . 32 22 24 Haulers Intercepted . | . . . . Recyclers Shooed . | . . . . Parts Field Recycled . | . . . . Retrieved Matter . | . . . . Parts Self-Destructed 4 | . . . 4 Prevented . | . . . . Parts Restored . | . . . . Kills | -11 -10 -10 -10 ------- Run | Yrd Mat Min Sub Combat Hostiles Destroyed 30 | . 14 10 6 Guns 30 | . 14 10 6 Classes Destroyed 5 | . 3 1 1 Worker 1 | . . 1 . Operator 1 | . 1 . . Swarmer 12 | . 3 9 . Grunt 12 | . 11 1 . Subdweller 6 | . . . 6 Best Kill Streak 6 | . 3 6 2 Combat Bots Only 6 | . 3 6 2 Max Kills in Single Turn 2 | . 1 2 1 Gunslinging 1 | . . 1 . Exploded . | . . . . Melee . | . . . . Uniques/NPCs Destroyed . | . . . . Combat | -11 -10 -10 -10 -------- Run | Yrd Mat Min Sub Hostile Shots Fired 163 | . 109 30 24 Missed 47 | . 30 9 8 Hits 116 | . 79 21 16 Projectile 116 | . 79 21 16 Critical Strikes 3 | . 1 . 2 Damage Taken 1484 | . 949 180 355 Core 268 | . 152 42 74 Absorbed by Shields . | . . . . Core Remaining (%) 100 | 100 . . . Volleys Fired 138 | . 72 17 49 Largest 2 | . 2 2 2 Hottest 90 | . 60 60 90 Shots Fired 253 | . 143 34 76 Gun 253 | . 143 34 76 Cannon . | . . . . Launcher . | . . . . Special . | . . . . Kinetic 153 | . 110 16 27 Thermal 100 | . 33 18 49 Explosive . | . . . . Electromagnetic . | . . . . Robot Hit Streak 26 | . 26 6 18 Robot Miss Streak 3 | . 3 3 1 Penetration Max . | . . . . Secondary Targets 6 | . 3 2 1 Max Gunslinging Chain 1 | . 1 1 1 Shots Hit Robots 154 | . 100 22 32 Core Hits 57 | . 31 14 12 Critical Kills . | . . . . Critical Parts Destroyed 1 | . 1 . . Critical Strikes 1 | . 1 . . Destroy 1 | . 1 . . Melee Attacks . | . . . . Impact . | . . . . Slashing . | . . . . Piercing . | . . . . Sneak Attacks . | . . . . Combat Hostiles . | . . . . Follow-up Attacks . | . . . . Damage Inflicted 1725 | . 1000 228 497 Guns 1714 | . 992 225 497 Cannons . | . . . . Explosions . | . . . . Melee . | . . . . Ramming 11 | . 8 3 . Kinetic 984 | . 727 91 166 Thermal 730 | . 265 134 331 Explosive . | . . . . Electromagnetic . | . . . . Impact . | . . . . Slashing . | . . . . Piercing . | . . . . Highest Corruption 2 | . 2 2 2 Average Corruption 2 | . 2 2 2 Corruption Purged . | . . . . Corruption Blocked . | . . . . Effects 49 | . 9 18 22 Message Errors 13 | . 1 8 4 Matter Fused 11 | . 4 5 2 Heat Flow Errors 11 | . . 1 10 Energy Discharges 5 | . 4 . 1 Parts Rejected 1 | . . . 1 Data Loss (minor) 4 | . . 2 2 Data Loss (major) 3 | . . 1 2 Misfires 1 | . . 1 . Overload Shots . | . . . . Overflow Damage . | . . . . Projectiles . | . . . . Explosions . | . . . . Melee . | . . . . Knockbacks . | . . . . Impact . | . . . . Kinetic . | . . . . Secondary . | . . . . Self-Inflicted Damage . | . . . . Shots . | . . . . Rammed 5 | . . 5 . Targets Rammed 9 | . 3 6 . Kicked 2 | . 2 . . Crushed 2 | . 1 1 . Highest Temperature 245 | . 11 134 245 Average Temperature 46 | . 4 43 88 Received Heat Transfer 621 | . 498 24 99 Siege Activations . | . . . . Martial Activations . | . . . . Shielding Activations . | . . . . Robots Disrupted . | . . . . Combat Hostiles . | . . . . Robots Corrupted . | . . . . Combat Hostiles . | . . . . Parts Fried . | . . . . Impact Corruptions . | . . . . Robots Melted . | . . . . Combat Hostiles . | . . . . Parts Melted 6 | . 2 . 4 Heat Transferred 1325 | . 625 300 400 Parts Sabotaged . | . . . . Parts Stolen . | . . . . Parts Stripped . | . . . . Power Chain Reactions . | . . . . Alert | -11 -10 -10 -10 ------- Run | Yrd Mat Min Sub Maximum Alert Level . | . . . . Low Security (%) 100 | . 100 100 . Level 1 . | . . . . Level 2 . | . . . . Level 3 . | . . . . Level 4 . | . . . . Level 5 . | . . . . High Security . | . . . . Max Security . | . . . . Peak Influence 145 | . 93 145 . Initial 15 | . . 15 . Average 31 | . 22 41 . Influence Increases 697 | . 376 298 23 Destroy 0b10 Robot/C 520 | . 280 220 20 Destroy 0b10 Robot/NC 10 | . 5 5 . Destroy Leader 110 | . 70 40 . Allied During Kill 6 | . . 3 3 Successful Hack 6 | . 6 . . Disable Machine 15 | . . 15 . Lose Combat Pursuer 30 | . 15 15 . Influence Decreases 697 | . 335 339 23 Entered New Map 26 | . . 26 . Time Decay 641 | . 315 303 23 Lost Part 30 | . 20 10 . Squads Dispatched 3 | . 3 . . Investigation 1 | . 1 . . Extermination . | . . . . Reinforcement 2 | . 2 . . Assault . | . . . . Garrison . | . . . . Intercept . | . . . . Searches Triggered . | . . . . Construction Impeded . | . . . . Haulers Reinforced . | . . . . Active Scanning Responses . | . . . . Cargo Convoy Interrupts . | . . . . Stealth | -11 -10 -10 -10 --------- Run | Yrd Mat Min Sub Distress Signals 1 | . 1 . . Communications Jammed . | . . . . Distress Signals . | . . . . Times Spotted 43 | . 24 10 9 Peak Tracking Total 4 | . 4 4 2 Tactical Retreats 2 | . 1 1 . Traps | -11 -10 -10 -10 ------- Run | Yrd Mat Min Sub Traps Triggered 5 | . 5 . . Indirectly . | . . . . Trap Hack Attempts . | . . . . Triggered . | . . . . Disarmed . | . . . . Reprogrammed . | . . . . Reused . | . . . . Traps Extracted . | . . . . Installed . | . . . . Triggered . | . . . . Machines | -11 -10 -10 -10 ---------- Run | Yrd Mat Min Sub Machines Disabled 2 | . . 1 1 Max in Single Turn 1 | . . . 1 Machines Repaired . | . . . . Machines Dismantled . | . . . . Machines Sabotaged . | . . . . Overloaded Fab Kills . | . . . . Hacking | -11 -10 -10 -10 --------- Run | Yrd Mat Min Sub Machines Accessed 7 | . 5 . 2 Terminals 5 | . 5 . . Fabricators . | . . . . Repair Stations . | . . . . Recycling Units . | . . . . Scanalyzers . | . . . . Garrison Access . | . . . . Total Hacks 12 | . 6 . 6 Successful 9 | . 3 . 6 Failed 3 | . 3 . . Catastrophic 3 | . 3 . . Database Lockouts . | . . . . Manual 6 | . 6 . . Terminals 6 | . 6 . . Fabricators . | . . . . Repair Stations . | . . . . Recycling Units . | . . . . Scanalyzers . | . . . . Garrison Access . | . . . . Terminal Hacks 7 | . 1 . 6 Record 5 | . . . 5 Terminal Index 1 | . 1 . . Proto ID Catalog 1 | . . . 1 Fabricator Hacks . | . . . . Repair Station Hacks . | . . . . Recycling Unit Hacks . | . . . . Scanalyzer . | . . . . Garrison Access Hacks . | . . . . Unauthorized Hacks 2 | . 2 . . Terminals 2 | . 2 . . Botnet 1 | . 1 . . Skim 1 | . 1 . . Fabricators . | . . . . Repair Stations . | . . . . Recycling Units . | . . . . Scanalyzers . | . . . . Garrison Access . | . . . . Data Cores Recovered . | . . . . Used . | . . . . Hacking Detections 5 | . 5 . . Full Trace Events . | . . . . Feedback Events . | . . . . Feedback Blocked . | . . . . Robot Schematics Acquired . | . . . . Robots Built . | . . . . Authchips . | . . . . Time . | . . . . Total Robot Build Rating . | . . . . Part Schematics Acquired . | . . . . Parts Built . | . . . . Authchips . | . . . . Time . | . . . . Total Part Build Rating . | . . . . Part Studies Acquired . | . . . . Parts Repaired . | . . . . Time . | . . . . Parts Recycled . | . . . . Recycled Matter . | . . . . Retrieved Matter . | . . . . Retrieved Components . | . . . . Parts Scanalyzed . | . . . . Part Schematics Acquired . | . . . . Parts Damaged . | . . . . Bothacking | -11 -10 -10 -10 ------------ Run | Yrd Mat Min Sub Used RIF Installer . | . . . . Robots Hacked . | . . . . Non-combat . | . . . . Combat . | . . . . Robot Hacks Applied . | . . . . Relay Couplers Released . | . . . . Fabnet Peak Effective % . | . . . . Robots Rewired . | . . . . Allies Hacked . | . . . . Hacks Repelled . | . . . . Allies | -11 -10 -10 -10 -------- Run | Yrd Mat Min Sub Total Allies 4 | . . 4 . Largest Group 3 | . . 3 3 Highest-Rated Group 40 | . . 40 40 Highest-Rated Ally 31 | . . 31 16 Total Orders . | . . . . Ally Attacks 40 | . . 5 35 Total Damage 210 | . . 84 126 Kills 5 | . . 1 4 Allies Corrupted . | . . . . Allies Melted . | . . . . Intel | -11 -10 -10 -10 ------- Run | Yrd Mat Min Sub Active Infowar (turns) . | . . . . Robot Analysis Total . | . . . . Derelict Logs Recovered 2 | . . 1 1 Drone Launches . | . . . . Drone Recoveries . | . . . . Exploration | -11 -10 -10 -10 ------------- Run | Yrd Mat Min Sub Turns Passed 3889 | . 1241 1048 1600 Spaces Moved 2028 | 1 534 614 879 Core . | . . . . Treads 1638 | . 145 614 879 Legs 390 | 1 389 . . Wheels . | . . . . Hover . | . . . . Flight . | . . . . Fastest Speed 120 | 120 120 160 160 Average Speed 165 | 120 180 160 160 Slowest Speed 260 | 120 260 160 260 Overloaded Moves . | . . . . Propulsion Burnouts . | . . . . Robots Hopped . | . . . . Potential Cave-ins . | . . . . Cave-ins Triggered . | . . . . Exploration Rate (%) 60 | 2 82 99 58 Regions Visited 3 Branch Regions 2 Pre-discovered Areas . | . . . . Known Exits Taken . | . . . . Unknown Exits Taken 3 | 1 1 1 . Scrap Searched 1 | . . 1 . Spaces Dug . | . . . . Terrain Destroyed . | . . . . Melee . | . . . . Projectile . | . . . . AOE . | . . . . Terrain Rammed . | . . . . Walls Destroyed . | . . . . Machines Disabled . | . . . . Actions | -11 -10 -10 -10 --------- Run | Yrd Mat Min Sub Total 2321 | . 673 650 998 Wait 98 | . 40 4 54 Move 2025 | . 533 613 879 Hop . | . . . . Pick Up 12 | . 3 5 4 Fast Attach 9 | . 8 . 1 Attach 7 | . 4 1 2 Detach 1 | . 1 . . Swap 12 | . 9 . 3 Drop 10 | . . 4 6 Fire 138 | . 72 17 49 Melee . | . . . . Ram . | . . . . Kick 2 | . 2 . . Crush 7 | . 1 6 . Escape Stasis . | . . . . Rewire . | . . . . Trap . | . . . . Miscellaneous . | . . . . Route ------- -11/Scrapyard -10/Materials (discovered 4 exits: [*Mat x3] / [*Min]) -10/Mines (discovered 4 exits: [*Mat x2] / [*Exi] / *Sub) -10/Subcaves (discovered 1 exit: [*Mat]) History --------- Turn | Location | Event 1 | -11/Scrapyard | Discovered new exit (range 0) 1 | -11/Scrapyard | Entered Materials 303 | -10/Materials | Build established: Mutant 352 | -10/Materials | Discovered new exit (range 6) 442 | -10/Materials | Discovered new exit (range 11) 476 | -10/Materials | Core integrity fell below 50% 744 | -10/Materials | Discovered new exit (range 3) 804 | -10/Materials | Build established: Scavenger-Mutant 998 | -10/Materials | Lost 3 parts (1p2n) 1015 | -10/Materials | Discovered new exit (range 10) 1242 | -10/Materials | Entered Mines 1295 | -10/Mines | Deemed a non-threat by the Exiles lab entrance 1297 | -10/Mines | Discovered new exit (range 5) 1401 | -10/Mines | Discovered new exit (range 9) 1556 | -10/Mines | Build established: Mutant 1575 | -10/Mines | Received a Mining Laser from a helpful Derelict 1612 | -10/Mines | Found a damaged Exp. Sensor Array with a note attached 1616 | -10/Mines | Found Prototype Device 1660 | -10/Mines | Discovered new exit (range 9) 1741 | -10/Mines | Found a hidden stash of uninstalled traps 1766 | -10/Mines | Received a Rocket Launcher from a helpful Derelict 1920 | -10/Mines | Found a Scrap Suit stashed away for nefarious purposes 1982 | -10/Mines | Assisted by bots powering up and referring to "LRC-V3" 2276 | -10/Mines | Discovered new exit (range 6) 2290 | -10/Mines | Entered Subcaves 2290 | -10/Subcaves | Accompanied by 3 allies 2326 | -10/Subcaves | Discovered new exit (range 14) 2416 | -10/Subcaves | Shifting Twisted Machinery released Flamer 2421 | -10/Subcaves | Shifting Twisted Machinery released Sub. Power Source 2529 | -10/Subcaves | Visited Clippyterm 2534 | -10/Subcaves | Learned Research security intel 2534 | -10/Subcaves | Learned Factory garrison access intel 2821 | -10/Subcaves | A swath of the cavern ceiling suddenly collapsed 2980 | -10/Subcaves | Shifting Twisted Machinery released Spk. Treads 2990 | -10/Subcaves | Shifting Twisted Machinery released Barrage Gun 2996 | -10/Subcaves | Lost 3 allies 3080 | -10/Subcaves | Core integrity fell below 20% 3734 | -10/Subcaves | Build established: Scavenger-Mutant 3765 | -10/Subcaves | Visited 4L-MR0's lab 3775 | -10/Subcaves | Found Prototype Device 3784 | -10/Subcaves | Found Rainbow Chip 3890 | -10/Subcaves | Destroyed by T1-OQU(R) with Subdweller Laser Last Messages --------------- Tripod Weapons Platform Maxwheels Hoverbase Flightbrick Gun Armor Tower Shield Power Bank Rainbow Chip Procsplitter VL-GR5's Exoskeleton "Deathgrip" Powered Cannon 03775_ 4L-MR0 mumbles: "Who knows where that last prototype ended up, probably tossed aside somewhere as if it were useless junk..." 03775_ Acquired Prototype Device. 03777_ Testing Chamber breached. 03784_ Acquired Rainbow Chip. 03787_ System corrupted: Heat flow error (+150). 03832_ System corrupted: Matter fused (-9). 03858_ RI#RFP4TRK :G:EHR0MJ&RR 03877_ Ion Engine destroyed. Map ----- +----------------------------------------------------+ | ####??### #??????????????????????????????? | | " "#### #??????????????????????????????? | | """### ##??????????????????????????????? | | ## #####???????????????????????????????? | | " ## ##???????????????????????????????????? | | ##" ^# # ##???????????????????????????????????? | | #### ## # #???????????????????????????????????? | | #?# #" ##??????????????????????????????????? | | #?# ## ##?????????????????????????????????? | | #?# ## ######????????????????????????????? | | #?# #" # #????????????????????????????? | | #?#####" ## #????????????????????????????? | | #?????# ## #????????? ????????????????? | | #?????## # #???????? ??????????????? | | #??????# ##???????? ?????????????? | | ???????# ####?????? ?????????????? | | ???????###" " ##???? ?????????????? | | ?????????## ####"""""" #???? ????????????? | | ??????????###?####"""" ##??# ??????????? | | ???????????# #"##""""" ### ??????????? | | ????????????# """""""" #??????????????? | | ???????????? "" "" #??????????????? | | ???????????? "" "" ### #??????????????? | | ????????????#"####"" ##????????????????????? | | ?????????????????# "" #?????????????????????? | | ?????????????????# "" R@##?????????????????????? | | ?????????????????# "" ###??????????????????????? | | ?????????????????# #????????????????????????? | | ?????????????????#""" #????????????????????????? | | ????????????????# """" ???????????????????????? | | ????????????????# ## ??????????????????????? | | ????????????????# #?# ?????????????????????? | | ??????????????? ??? ???????????????????? | | ?????????????? ??? ??????????????????? | | ?????????????" ### ???? ?????????????????? | | ?????????????#??? ???? ???????????????? | | ????????????????# ????? ? ??????????????? | | ???????????????? ??????### ???????????????? | | ???????????????? ?????????# ???????????????? | | ??????????????????# #??????????#?????????????????? | | ?????????????????????????????????????????????????? | | ?????????????????????????????????????????????????? | | ?????????????????????????????????????????????????? | | ?????????????????????????????????????????????????? | | ?????????????????????????????????????????????????? | | ?????????????????????????????????????????????????? | | ?????????????????????????????????????????????????? | | ?????????????????????????????????????????????????? | | ?????????????????????????????????????????????????? | | ?????????????????????????????????????????????????? | +----------------------------------------------------+ Best States ------------- Heat Dissipation 39 Energy Generation 10 Energy Capacity 250 Matter Stores 300 Matter Capacity 300 Sight Range 16 Terrain Scan Density 10 Evasion (%) 45 Recoil Reduction 2 Item Schematics ----------------- None Robot Schematics ------------------ None Fabricated ------------ Nothing Repaired ---------- Nothing Studied --------- None Alien Tech Used ----------------- None Achievements -------------- None Challenges ------------ None Game ------ Seed LaserMolecularRocket Manual? 0 Play Time 00:17:24 Cumulative 420.3 hours Start 2026.06.22 @ 19:01:21 End 2026.06.22 @ 19:13:40 Sessions 1 Manual Loads 0 Difficulty Rogue Special Mode None Game No. 539 Rogue 539 Adventurer 0 Explorer 0 Win Type - Total 33 Types 17/1/9/1/1/1/0/1/1/1 Lore% 87 Gallery% 77 Achievement% 50 Wizard Run 0 Options --------- Layout 0 ASCII 0 Keyboard 0 Movement Numpad Keybinds 0 Fullscreen 1 Font 18/SmallcapsGlow Map View 76x50 Zoom Use 0% Tactical HUD 1 Map Filters NONE Filters NONE Steam 1 RUN: d83b22c4-b5bf-44e9-b61f-061c1d2f0675